fUSD/lending_fUSD_20250522
["ID","MTS","AMOUNT","RATE_DAILY","PERIOD"]
[362004237,1747933850892,-420.0,0.00032876,5]
[362004238,1747933850901,-420.0,0.00032876,5]
[362004239,1747933850911,-420.0,0.00032876,5]
[362004240,1747933850920,-420.0,0.00032876,5]
[362004241,1747933850930,-420.0,0.00032876,5]
[362004242,1747933850940,-420.0,0.00032876,5]
[362004243,1747933850950,-420.0,0.00032876,5]
[362004244,1747933850959,-420.0,0.00032876,5]
[362004245,1747933850969,-441.89,0.00032876,5]
[362004246,1747933850979,-420.0,0.00032876,5]
[362004247,1747933850989,-420.0,0.00032876,5]
[362004248,1747933850998,-1035.38,0.00032876,5]
[362004249,1747933851008,-420.0,0.00032876,5]
[362004250,1747933851018,-420.0,0.00032876,5]
[362004251,1747933851027,-420.0,0.00032876,5]
[362004252,1747933851037,-420.0,0.00032876,5]
[362004253,1747933851046,-150.812499,0.00032876,5]
[362004254,1747933851057,-420.0,0.00032876,5]
[362004255,1747933851066,-420.0,0.00032876,5]
[362004256,1747933851075,-420.0,0.00032876,5]
[362004257,1747933851085,-420.0,0.00032876,5]
[362004258,1747933851095,-916.68,0.00032876,5]
[362004259,1747933851105,-1558.06,0.00032876,5]
[362004260,1747933851115,-420.0,0.00032876,5]
[362004261,1747933851124,-435.7613147,0.00032876,5]
[362004262,1747933851134,-420.0,0.00032876,5]
[362004263,1747933851144,-420.0,0.00032876,5]
[362004264,1747933851153,-420.0,0.00032876,5]
[362004265,1747933851163,-420.0,0.00032876,5]
[362004266,1747933851172,-420.0,0.00032876,5]
[362004267,1747933851182,-9657.78,0.00032876,5]
[362004268,1747933851192,-150.812497,0.00032876,5]
[362004269,1747933851201,-856.88,0.00032876,5]
[362004270,1747933851211,-420.0,0.00032876,5]
[362004271,1747933851221,-420.0,0.00032876,5]
[362004272,1747933851230,-420.0,0.00032876,5]
[362004273,1747933851240,-420.0,0.00032876,5]
[362004274,1747933851250,-420.0,0.00032876,5]
[362004275,1747933851260,-420.0,0.00032876,5]
[362004276,1747933851270,-420.0,0.00032876,5]
[362004277,1747933851280,-1492.64,0.00032876,2]
[362004278,1747933851289,-420.0,0.00032876,5]
[362004279,1747933851299,-420.0,0.00032876,5]
[362004280,1747933851308,-151.0,0.00032876,7]
[362004281,1747933851318,-852.89,0.00032876,5]
[362004282,1747933851329,-151.0,0.00032876,7]
[362004283,1747933851338,-989.21,0.00032876,5]
[362004284,1747933851348,-662.91,0.00032876,5]
[362004285,1747933851358,-420.0,0.00032876,5]
[362004286,1747933851368,-420.0,0.00032876,5]
[362004287,1747933851378,-482.81,0.00032876,5]
[362004288,1747933851387,-712.38,0.00032876,5]
[362004289,1747933851397,-420.0,0.00032876,5]
[362004290,1747933851407,-420.0,0.00032876,5]
[362004291,1747933851416,-420.0,0.00032876,5]
[362004292,1747933851426,-420.0,0.00032876,5]
[362004293,1747933851435,-852.65,0.00032876,5]
[362004294,1747933851446,-420.75908688,0.00032876,5]
[362004295,1747933851455,-420.0,0.00032876,5]
[362004296,1747933851466,-689.38,0.00032876,5]
[362004297,1747933851476,-420.0,0.00032876,5]
[362004298,1747933851485,-420.0,0.00032876,5]
[362004299,1747933851495,-944.19,0.00032876,5]
[362004300,1747933851505,-420.0,0.00032876,5]
[362004301,1747933851515,-420.0,0.00032876,5]
[362004302,1747933851524,-763.73,0.00032876,5]
[362004303,1747933851534,-420.0,0.00032876,5]
[362004304,1747933851544,-420.0,0.00032876,5]
[362004305,1747933851554,-420.0,0.00032876,5]
[362004306,1747933851564,-682.05,0.00032876,5]
[362004307,1747933851573,-420.0,0.00032876,5]
[362004308,1747933851583,-508.79,0.00032876,5]
[362004309,1747933851592,-420.0,0.00032876,5]
[362004310,1747933851602,-500.0,0.00032876,5]
[362004311,1747933851612,-500.0,0.00032876,5]
[362004312,1747933851622,-500.0,0.00032876,5]
[362004313,1747933851632,-500.0,0.00032876,5]
[362004314,1747933851641,-253.18352916,0.00032876,5]
[362004315,1747933851651,-420.0,0.00032876,5]
[362004316,1747933851660,-1132.56,0.00032876,5]
[362004317,1747933851670,-420.0,0.00032876,5]
[362004318,1747933851680,-420.0,0.00032876,5]
[362004319,1747933851690,-420.0,0.00032876,5]
[362004320,1747933851700,-7060.32,0.00032876,2]
[362004321,1747933851711,-151.0,0.00032876,7]
[362004322,1747933851723,-420.0,0.00032876,5]
[362004323,1747933851732,-587.53,0.00032876,5]
[362004324,1747933851742,-420.0,0.00032876,5]
[362004325,1747933851751,-391.99,0.00032876,5]
[362004326,1747933851762,-420.0,0.00032876,5]
[362004327,1747933851772,-15480.1297,0.00032876,2]
[362004328,1747933851782,-538.68,0.00032876,5]
[362004329,1747933851793,-1684.49,0.00032876,5]
[362004330,1747933851804,-2664.69,0.00032876,5]
[362004331,1747933851813,-472.67,0.00032876,5]
[362004332,1747933851822,-420.0,0.00032876,5]
[362004333,1747933851831,-1992.63,0.00032876,5]
[362004334,1747933851841,-420.0,0.00032876,5]
[362004335,1747933851851,-834.06,0.00032876,5]
[362004336,1747933851861,-760.49,0.00032876,5]
[362004337,1747933851870,-420.0,0.00032876,5]
[362004338,1747933851880,-420.0,0.00032876,5]
[362004339,1747933851890,-695.29,0.00032876,5]
[362004340,1747933851900,-420.0,0.00032876,5]
[362004341,1747933851909,-420.0,0.00032876,5]
[362004342,1747933851918,-420.0,0.00032876,5]
[362004343,1747933851928,-487.94,0.00032876,5]
[362004344,1747933851938,-3002.7,0.00032876,5]
[362004345,1747933851948,-420.0,0.00032876,5]
[362004346,1747933851957,-151.0,0.00032876,7]
[362004347,1747933851968,-420.0,0.00032876,5]
[362004348,1747933851977,-151.0,0.00032876,7]
[362004349,1747933851987,-714.9,0.00032876,5]
[362004350,1747933851996,-420.0,0.00032876,5]
[362004351,1747933852006,-151.0,0.00032876,7]
[362004352,1747933852016,-151.0,0.00032876,7]
[362004353,1747933852026,-420.0,0.00032876,5]
[362004354,1747933852036,-151.0,0.00032876,7]
[362004355,1747933852045,-420.0,0.00032876,5]
[362004356,1747933852055,-420.0,0.00032876,5]
[362004357,1747933852065,-420.0,0.00032876,5]
[362004358,1747933852074,-926.84,0.00032876,5]
[362004359,1747933852083,-420.0,0.00032876,5]
[362004360,1747933852093,-420.0,0.00032876,5]
[362004361,1747933852102,-154.18522,0.00032876,7]
[362004362,1747933852112,-420.0,0.00032876,5]
[362004363,1747933852122,-1535.61,0.00032876,5]
[362004364,1747933852132,-1008.31,0.00032876,5]
[362004365,1747933852142,-420.0,0.00032876,5]
[362004366,1747933852151,-790.41,0.00032876,5]
[362004367,1747933852160,-420.0,0.00032876,5]
[362004368,1747933852170,-420.0,0.00032876,5]
[362004369,1747933852180,-420.0,0.00032876,5]
[362004370,1747933852189,-420.0,0.00032876,5]
[362004371,1747933852198,-420.0,0.00032876,5]
[362004372,1747933852208,-498.17,0.00032876,5]
[362004373,1747933852218,-420.0,0.00032876,5]
[362004374,1747933852228,-420.0,0.00032876,5]
[362004375,1747933852237,-420.0,0.00032876,5]
[362004376,1747933852247,-420.0,0.00032876,5]
[362004377,1747933852256,-500.0,0.00032876,5]
[362004378,1747933852265,-762.76,0.00032876,5]
[362004379,1747933852275,-500.0,0.00032876,5]
[362004380,1747933852284,-500.0,0.00032876,5]
[362004381,1747933852293,-500.0,0.00032876,5]
[362004382,1747933852302,-671.75,0.00032876,5]
[362004383,1747933852380,-803.17,0.00032876,5]
[362004384,1747933852389,-500.0,0.00032876,5]
[362004385,1747933852399,-420.0,0.00032876,5]
[362004386,1747933852409,-496.74,0.00032876,5]
[362004387,1747933852419,-990.41,0.00032876,5]
[362004388,1747933852429,-420.0,0.00032876,5]
[362004389,1747933852439,-611.86,0.00032876,5]
[362004390,1747933852448,-603.63,0.00032876,5]
[362004391,1747933852458,-497.27,0.00032876,5]
[362004392,1747933852470,-420.0,0.00032876,5]
[362004393,1747933852479,-420.0,0.00032876,5]
[362004394,1747933852489,-20000.0,0.000329,120]
[362004395,1747933852499,-200.0,0.00032998,117]
[362004396,1747933852509,-3365.02284875,0.00033,120]
[362004397,1747933852519,-2500.0,0.00033,5]
[362004398,1747933852529,-700.0,0.00033,2]
[362004399,1747933852539,-201.43962383,0.00033,28]
[362004400,1747933852548,-161.42,0.00033027,2]
[362004401,1747933852559,-151.0,0.00033139,7]
[362004402,1747933852568,-151.0,0.00033139,7]
[362004403,1747933852578,-151.0,0.00033139,7]
[362004404,1747933852588,-151.0,0.00033139,7]
[362004405,1747933852597,-151.0,0.0003314,7]
[362004406,1747933852606,-151.0,0.0003314,7]
[362004407,1747933852616,-151.0,0.0003314,7]
[362004408,1747933852626,-151.0,0.0003314,7]
[362004409,1747933852636,-158.482218,0.0003314,7]
[362004410,1747933852645,-420.0,0.00033149,5]
[362004411,1747933852655,-151.0,0.00033149,7]
[362004412,1747933852665,-154.720113,0.00033149,7]
[362004413,1747933852674,-290.241172,0.00033149,7]
[362004414,1747933852684,-150.0,0.00033149,2]
[362004415,1747933852693,-1000.0,0.00033149,2]
[362004416,1747933852703,-151.0,0.00033149,7]
[362004417,1747933852716,-500.0,0.00033149,5]
[362004418,1747933852725,-500.0,0.00033149,5]
[362004419,1747933852735,-151.0,0.0003315,7]
[362004420,1747933852743,-151.0,0.0003315,7]
[362004421,1747933852753,-151.0,0.0003315,7]
[362004422,1747933852762,-151.0,0.0003315,7]
[362004423,1747933852772,-173.128583,0.0003315,7]
[362004424,1747933852782,-156.631504,0.0003315,7]
[362004425,1747933852792,-153.641413,0.0003315,7]
[362004426,1747933852802,-420.0,0.0003315,5]
[362004427,1747933852811,-420.0,0.0003315,5]
[362004428,1747933852820,-420.0,0.0003315,5]
[362004429,1747933852829,-420.0,0.0003315,5]
[362004430,1747933852838,-151.0,0.0003315,7]
[362004431,1747933852848,-151.0,0.0003315,7]
[362004432,1747933852857,-151.0,0.0003315,7]
[362004433,1747933852866,-151.0,0.0003315,7]
[362004434,1747933852876,-151.0,0.0003315,7]
[362004435,1747933852885,-151.0,0.0003315,7]
[362004436,1747933852894,-420.0,0.0003315,5]
[362004437,1747933852903,-420.0,0.0003315,5]
[362004438,1747933852913,-420.0,0.0003315,5]
[362004439,1747933852922,-617.84,0.0003315,5]
[362004440,1747933852931,-557.43,0.0003315,5]
[362004441,1747933852941,-420.0,0.0003315,5]
[362004442,1747933852950,-420.0,0.0003315,5]
[362004443,1747933852959,-433.93,0.0003315,5]
[362004444,1747933852969,-420.0,0.0003315,5]
[362004445,1747933852978,-420.0,0.0003315,5]
[362004446,1747933852987,-151.0,0.0003315,7]
[362004447,1747933852996,-468.52,0.0003315,5]
[362004448,1747933853005,-151.0,0.0003315,7]
[362004449,1747933853015,-420.0,0.0003315,5]
[362004450,1747933853024,-420.0,0.0003315,5]
[362004451,1747933853033,-420.0,0.0003315,5]
[362004452,1747933853043,-420.0,0.0003315,5]
[362004453,1747933853052,-420.0,0.0003315,5]
[362004454,1747933853061,-420.0,0.0003315,5]
[362004455,1747933853070,-420.0,0.0003315,5]
[362004456,1747933853080,-420.0,0.0003315,5]
[362004457,1747933853089,-420.0,0.0003315,5]
[362004458,1747933853099,-453.05,0.0003315,5]
[362004459,1747933853108,-420.0,0.0003315,5]
[362004460,1747933853117,-420.0,0.0003315,5]
[362004461,1747933853127,-457.43,0.0003315,5]
[362004462,1747933853136,-420.0,0.0003315,5]
[362004463,1747933853145,-194.19742816,0.0003315,5]
[362004464,1747933853154,-550.44,0.0003315,5]
[362004465,1747933853164,-420.0,0.0003315,5]
[362004466,1747933853173,-420.0,0.0003315,5]
[362004467,1747933853182,-659.52,0.0003315,5]
[362004468,1747933853191,-420.0,0.0003315,5]
[362004469,1747933853201,-420.0,0.0003315,5]
[362004470,1747933853210,-420.0,0.0003315,5]
[362004471,1747933853220,-420.0,0.0003315,5]
[362004472,1747933853229,-420.0,0.0003315,5]
[362004473,1747933853238,-577.96,0.0003315,5]
[362004474,1747933853247,-420.0,0.0003315,5]
[362004475,1747933853257,-463.1,0.0003315,5]
[362004476,1747933853267,-547.33,0.0003315,5]
[362004477,1747933853276,-420.0,0.0003315,5]
[362004478,1747933853287,-420.0,0.0003315,5]
[362004479,1747933853296,-420.0,0.0003315,5]
[362004480,1747933853305,-151.0,0.0003315,7]
[362004481,1747933853314,-420.0,0.0003315,5]
[362004482,1747933853324,-151.0,0.0003315,7]
[362004483,1747933853333,-463.0,0.0003315,5]
[362004484,1747933853342,-151.0,0.0003315,7]
[362004485,1747933853352,-151.0,0.0003315,7]
[362004486,1747933853361,-599.91,0.0003315,5]
[362004487,1747933853371,-420.0,0.0003315,5]
[362004488,1747933853380,-464.52,0.0003315,5]
[362004489,1747933853390,-420.0,0.0003315,5]
[362004490,1747933853399,-486.25,0.0003315,5]
[362004491,1747933853409,-420.0,0.0003315,5]
[362004492,1747933853418,-697.31,0.0003315,5]
[362004493,1747933853428,-420.0,0.0003315,5]
[362004494,1747933853437,-420.0,0.0003315,5]
[362004495,1747933853447,-420.0,0.0003315,5]
[362004496,1747933853456,-420.0,0.0003315,5]
[362004497,1747933853467,-420.0,0.0003315,5]
[362004498,1747933853477,-420.0,0.0003315,5]
[362004499,1747933853486,-420.0,0.0003315,5]
[362004500,1747933853496,-420.0,0.0003315,5]
[362004501,1747933853505,-420.0,0.0003315,5]
[362004502,1747933853514,-420.0,0.0003315,5]
[362004503,1747933853524,-420.0,0.0003315,5]
[362004504,1747933853533,-420.0,0.0003315,5]
[362004505,1747933853542,-420.0,0.0003315,5]
[362004506,1747933853552,-529.35,0.0003315,5]
[362004507,1747933853561,-420.0,0.0003315,5]
[362004508,1747933853571,-420.0,0.0003315,5]
[362004509,1747933853580,-420.0,0.0003315,5]
[362004510,1747933853590,-420.0,0.0003315,5]
[362004511,1747933853599,-420.0,0.0003315,5]
[362004512,1747933853609,-420.0,0.0003315,5]
[362004513,1747933853619,-468.75,0.0003315,5]
[362004514,1747933853628,-420.0,0.0003315,5]
[362004515,1747933853638,-662.62,0.0003315,5]
[362004516,1747933853647,-420.0,0.0003315,5]
[362004517,1747933853657,-420.0,0.0003315,5]
[362004518,1747933853667,-628.66,0.0003315,5]
[362004519,1747933853676,-420.0,0.0003315,5]
[362004520,1747933853686,-420.0,0.0003315,5]
[362004521,1747933853695,-420.0,0.0003315,5]
[362004522,1747933853705,-420.0,0.0003315,5]
[362004523,1747933853714,-420.0,0.0003315,5]
[362004524,1747933853724,-420.0,0.0003315,5]
[362004525,1747933853737,-510.99,0.0003315,5]
[362004526,1747933853745,-420.0,0.0003315,5]
[362004527,1747933853755,-508.41259517,0.0003315,5]
[362004528,1747933853764,-642.96,0.0003315,5]
[362004529,1747933853773,-442.25,0.0003315,5]
[362004530,1747933853785,-420.0,0.0003315,5]
[362004531,1747933853794,-420.0,0.0003315,5]
[362004532,1747933853805,-420.0,0.0003315,5]
[362004533,1747933853815,-420.0,0.0003315,5]
[362004534,1747933853824,-420.0,0.0003315,5]
[362004535,1747933853834,-420.0,0.0003315,5]
[362004536,1747933853843,-420.0,0.0003315,5]
[362004537,1747933853852,-469.92,0.0003315,5]
[362004538,1747933853862,-420.0,0.0003315,5]
[362004539,1747933853872,-867.63,0.0003315,5]
[362004540,1747933853881,-420.0,0.0003315,5]
[362004541,1747933853890,-589.11,0.0003315,5]
[362004542,1747933853900,-420.0,0.0003315,5]
[362004543,1747933853909,-420.0,0.0003315,5]
[362004544,1747933853919,-420.0,0.0003315,5]
[362004545,1747933853928,-455.18752269,0.0003315,5]
[362004546,1747933853938,-420.0,0.0003315,5]
[362004547,1747933853947,-420.0,0.0003315,5]
[362004548,1747933853956,-466.21,0.0003315,5]
[362004549,1747933853966,-420.0,0.0003315,5]
[362004550,1747933853976,-420.0,0.0003315,5]
[362004551,1747933853985,-420.0,0.0003315,5]
[362004552,1747933853995,-352.22526053,0.0003315,5]
[362004553,1747933854005,-420.0,0.0003315,5]
[362004554,1747933854014,-420.0,0.0003315,5]
[362004555,1747933854023,-420.0,0.0003315,5]
[362004556,1747933854032,-464.75,0.0003315,5]
[362004557,1747933854042,-454.28,0.0003315,5]
[362004558,1747933854051,-420.0,0.0003315,5]
[362004559,1747933854060,-543.11,0.0003315,5]
[362004560,1747933854069,-420.0,0.0003315,5]
[362004561,1747933854079,-420.0,0.0003315,5]
[362004562,1747933854088,-510.32,0.0003315,5]
[362004563,1747933854097,-561.89,0.0003315,5]
[362004564,1747933854106,-420.0,0.0003315,5]
[362004565,1747933854115,-420.0,0.0003315,5]
[362004566,1747933854125,-482.92,0.0003315,5]
[362004567,1747933854135,-640.96,0.0003315,5]
[362004568,1747933854144,-628.61,0.0003315,5]
[362004569,1747933854153,-676.98,0.0003315,5]
[362004570,1747933854163,-420.0,0.0003315,5]
[362004571,1747933854172,-508.22,0.0003315,5]
[362004572,1747933854182,-420.0,0.0003315,5]
[362004573,1747933854191,-420.0,0.0003315,5]
[362004574,1747933854201,-428.04,0.0003315,5]
[362004575,1747933854210,-420.0,0.0003315,5]
[362004576,1747933854221,-438.13,0.0003315,5]
[362004577,1747933854230,-420.0,0.0003315,5]
[362004578,1747933854239,-928.4,0.0003315,5]
[362004579,1747933854249,-420.0,0.0003315,5]
[362004580,1747933854258,-485.06,0.0003315,5]
[362004581,1747933854267,-559.16,0.0003315,5]
[362004582,1747933854276,-851.37,0.0003315,5]
[362004583,1747933854285,-420.0,0.0003315,5]
[362004584,1747933854294,-455.05,0.0003315,5]
[362004585,1747933854303,-281.8,0.0003315,5]
[362004586,1747933854312,-451.54,0.0003315,5]
[362004587,1747933854321,-488.65,0.0003315,5]
[362004588,1747933854330,-420.0,0.0003315,5]
[362004589,1747933854340,-420.0,0.0003315,5]
[362004590,1747933854349,-420.0,0.0003315,5]
[362004591,1747933854359,-439.74,0.0003315,5]
[362004592,1747933854368,-420.0,0.0003315,5]
[362004593,1747933854377,-579.3,0.0003315,5]
[362004594,1747933854386,-420.0,0.0003315,5]
[362004595,1747933854396,-1187.49,0.0003315,5]
[362004596,1747933854405,-456.47,0.0003315,5]
[362004597,1747933854414,-585.77,0.0003315,5]
[362004598,1747933854424,-485.73,0.0003315,5]
[362004599,1747933854433,-420.0,0.0003315,5]
[362004600,1747933854442,-420.0,0.0003315,5]
[362004601,1747933854451,-420.0,0.0003315,5]
[362004602,1747933854461,-688.23,0.0003315,5]
[362004603,1747933854472,-637.3,0.0003315,5]
[362004604,1747933854481,-420.0,0.0003315,5]
[362004605,1747933854490,-420.0,0.0003315,5]
[362004606,1747933854499,-420.0,0.0003315,5]
[362004607,1747933854508,-473.24,0.0003315,5]
[362004608,1747933854518,-535.16,0.0003315,5]
[362004609,1747933854527,-420.0,0.0003315,5]
[362004610,1747933854536,-420.0,0.0003315,5]
[362004611,1747933854545,-420.0,0.0003315,5]
[362004612,1747933854555,-420.0,0.0003315,5]
[362004613,1747933854564,-151.0,0.0003315,7]
[362004614,1747933854573,-151.0,0.0003315,7]
[362004615,1747933854582,-151.0,0.0003315,7]
[362004616,1747933854592,-420.0,0.0003315,5]
[362004617,1747933854601,-151.0,0.0003315,7]
[362004618,1747933854611,-420.0,0.0003315,5]
[362004619,1747933854620,-420.0,0.0003315,5]
[362004620,1747933854630,-420.0,0.0003315,5]
[362004621,1747933854641,-1350.67,0.0003315,5]
[362004622,1747933854651,-420.0,0.0003315,5]
[362004623,1747933854661,-420.0,0.0003315,5]
[362004624,1747933854671,-420.0,0.0003315,5]
[362004625,1747933854682,-420.0,0.0003315,5]
[362004626,1747933854692,-420.0,0.0003315,5]
[362004627,1747933854702,-420.0,0.0003315,5]
[362004628,1747933854711,-501.6,0.0003315,5]
[362004629,1747933854722,-607.22,0.0003315,5]
[362004630,1747933854734,-420.0,0.0003315,5]
[362004631,1747933854743,-420.0,0.0003315,5]
[362004632,1747933854753,-470.61,0.0003315,5]
[362004633,1747933854763,-566.25,0.0003315,5]
[362004634,1747933854772,-420.0,0.0003315,5]
[362004635,1747933854782,-475.69,0.0003315,5]
[362004636,1747933854792,-711.61,0.0003315,5]
[362004637,1747933854801,-420.0,0.0003315,5]
[362004638,1747933854810,-454.53,0.0003315,5]
[362004639,1747933854819,-420.0,0.0003315,5]
[362004640,1747933854829,-420.0,0.0003315,5]
[362004641,1747933854838,-420.0,0.0003315,5]
[362004642,1747933854847,-420.0,0.0003315,5]
[362004643,1747933854857,-151.0,0.0003315,7]
[362004644,1747933854866,-420.0,0.0003315,5]
[362004645,1747933854876,-420.0,0.0003315,5]
[362004646,1747933854885,-545.9,0.0003315,5]
[362004647,1747933854895,-420.0,0.0003315,5]
[362004648,1747933854904,-381.29735536,0.0003315,5]
[362004649,1747933854914,-420.0,0.0003315,5]
[362004650,1747933854923,-420.0,0.0003315,5]
[362004651,1747933854933,-589.57,0.0003315,5]
[362004652,1747933854943,-1563.4,0.0003315,5]
[362004653,1747933854952,-420.0,0.0003315,5]
[362004654,1747933854962,-481.76,0.0003315,5]
[362004655,1747933854973,-420.0,0.0003315,5]
[362004656,1747933854983,-420.0,0.0003315,10]
[362004657,1747933854992,-420.0,0.0003315,5]
[362004658,1747933855001,-191.55997771,0.0003315,5]
[362004659,1747933855011,-420.0,0.0003315,5]
[362004660,1747933855020,-586.37,0.0003315,5]
[362004661,1747933855029,-559.24,0.0003315,5]
[362004662,1747933855038,-420.0,0.0003315,5]
[362004663,1747933855047,-420.0,0.0003315,5]
[362004664,1747933855056,-1122.81,0.0003315,5]
[362004665,1747933855066,-420.0,0.0003315,5]
[362004666,1747933855075,-420.0,0.0003315,5]
[362004667,1747933855084,-420.0,0.0003315,5]
[362004668,1747933855094,-420.0,0.0003315,5]
[362004669,1747933855104,-727.36,0.0003315,5]
[362004670,1747933855113,-577.39,0.0003315,5]
[362004671,1747933855123,-420.0,0.0003315,5]
[362004672,1747933855132,-420.0,0.0003315,5]
[362004673,1747933855141,-644.15,0.0003315,5]
[362004674,1747933855151,-300.0,0.0003315,5]
[362004675,1747933855160,-572.15,0.0003315,5]
[362004676,1747933855169,-420.0,0.0003315,5]
[362004677,1747933855179,-420.0,0.0003315,5]
[362004678,1747933855188,-532.67,0.0003315,5]
[362004679,1747933855197,-493.12,0.0003315,5]
[362004680,1747933855206,-459.75,0.0003315,5]
[362004681,1747933855215,-843.51,0.0003315,5]
[362004682,1747933855224,-420.0,0.0003315,5]
[362004683,1747933855233,-420.0,0.0003315,5]
[362004684,1747933855242,-420.0,0.0003315,5]
[362004685,1747933855251,-420.0,0.0003315,5]
[362004686,1747933855261,-420.0,0.0003315,5]
[362004687,1747933855270,-593.15,0.0003315,5]
[362004688,1747933855279,-420.0,0.0003315,5]
[362004689,1747933855288,-797.22,0.0003315,5]
[362004690,1747933855297,-533.84,0.0003315,5]
[362004691,1747933855306,-529.35,0.0003315,5]
[362004692,1747933855315,-592.14,0.0003315,5]
[362004693,1747933855324,-420.0,0.0003315,5]
[362004694,1747933855333,-384.21072587,0.0003315,5]
[362004695,1747933855343,-420.0,0.0003315,5]
[362004696,1747933855351,-179.84560731,0.0003315,5]
[362004697,1747933855361,-420.0,0.0003315,5]
[362004698,1747933855370,-682.38,0.0003315,5]
[362004699,1747933855379,-920.85,0.0003315,5]
[362004700,1747933855389,-412.90110338,0.0003315,5]
[362004701,1747933855399,-603.95,0.0003315,5]
[362004702,1747933855408,-420.0,0.0003315,5]
[362004703,1747933855417,-420.0,0.0003315,5]
[362004704,1747933855427,-420.0,0.0003315,5]
[362004705,1747933855436,-438.47,0.0003315,5]
[362004706,1747933855445,-420.0,0.0003315,5]
[362004707,1747933855455,-420.0,0.0003315,5]
[362004708,1747933855464,-779.53,0.0003315,5]
[362004709,1747933855474,-420.0,0.0003315,5]
[362004710,1747933855483,-420.0,0.0003315,5]
[362004711,1747933855492,-420.0,0.0003315,5]
[362004712,1747933855504,-151.0,0.0003315,7]
[362004713,1747933855513,-151.0,0.0003315,7]
[362004714,1747933855522,-477.74,0.0003315,5]
[362004715,1747933855532,-482.75,0.0003315,5]
[362004716,1747933855541,-420.0,0.0003315,5]
[362004717,1747933855551,-420.0,0.0003315,5]
[362004718,1747933855560,-420.0,0.0003315,5]
[362004719,1747933855569,-420.0,0.0003315,5]
[362004720,1747933855579,-430.85,0.0003315,5]
[362004721,1747933855589,-420.0,0.0003315,5]
[362004722,1747933855598,-420.0,0.0003315,5]
[362004723,1747933855609,-151.0,0.0003315,7]
[362004724,1747933855619,-151.0,0.0003315,7]
[362004725,1747933855629,-420.0,0.0003315,5]
[362004726,1747933855638,-420.0,0.0003315,5]
[362004727,1747933855648,-420.0,0.0003315,5]
[362004728,1747933855657,-420.0,0.0003315,5]
[362004729,1747933855667,-420.0,0.0003315,5]
[362004730,1747933855677,-420.0,0.0003315,5]
[362004731,1747933855686,-669.62,0.0003315,5]
[362004732,1747933855696,-420.0,0.0003315,5]
[362004733,1747933855705,-420.0,0.0003315,5]
[362004734,1747933855715,-420.0,0.0003315,5]
[362004735,1747933855725,-420.0,0.0003315,5]
[362004736,1747933855737,-508.77,0.0003315,5]